[Event "*** SCC Grand Prix: Titled Tuesday Blitz"]
[Site "Chess.com"]
[Date "2020.09.08"]
[Round "2"]
[White "Matols"]
[Black "chegueps"]
[Result "0-1"]
[WhiteElo "2252"]
[BlackElo "2468"]
[TimeControl "180+1"]
[EndTime "10:18:06 PDT"]
[Termination "chegueps won on time"]

1. d4 {[%clk 0:03:00.9]} 1... Nf6 {[%clk 0:02:59.4]} 2. c4 {[%clk 0:03:00.6]}
2... g6 {[%clk 0:02:59.7]} 3. g3 {[%clk 0:03:00.1]} 3... d5 {[%clk 0:02:59.6]}
4. cxd5 {[%clk 0:02:55.2]} 4... Nxd5 {[%clk 0:03:00.5]} 5. Bg2 {[%clk
0:02:54.1]} 5... Bg7 {[%clk 0:03:00.2]} 6. Nf3 {[%clk 0:02:53.7]} 6... O-O
{[%clk 0:02:54.2]} 7. O-O {[%clk 0:02:53.5]} 7... Nb6 {[%clk 0:02:52.7]} 8. Nc3
{[%clk 0:02:51.1]} 8... Nc6 {[%clk 0:02:31.3]} 9. e3 {[%clk 0:02:49.6]} 9... e5
{[%clk 0:02:26.5]} 10. d5 {[%clk 0:02:38.1]} 10... Ne7 {[%clk 0:02:09.2]} 11. e4
{[%clk 0:02:27.3]} 11... Nc4 {[%clk 0:02:04]} 12. b3 {[%clk 0:02:21.8]} 12...
Nd6 {[%clk 0:02:02.6]} 13. Bb2 {[%clk 0:02:20.6]} 13... c5 {[%clk 0:01:57.1]}
14. Rc1 {[%clk 0:02:13.3]} 14... b6 {[%clk 0:01:50.2]} 15. Nd2 {[%clk
0:02:08.6]} 15... Ba6 {[%clk 0:01:32.1]} 16. Re1 {[%clk 0:02:07.2]} 16... f5
{[%clk 0:01:33]} 17. Na4 {[%clk 0:01:35.9]} 17... f4 {[%clk 0:01:01.3]} 18. Nf3
{[%clk 0:01:14.4]} 18... Nf7 {[%clk 0:00:42]} 19. gxf4 {[%clk 0:01:07.6]} 19...
exf4 {[%clk 0:00:38.5]} 20. Bxg7 {[%clk 0:01:06.5]} 20... Kxg7 {[%clk
0:00:39.4]} 21. Nb2 {[%clk 0:00:59.4]} 21... g5 {[%clk 0:00:33.5]} 22. Nc4
{[%clk 0:00:55.2]} 22... g4 {[%clk 0:00:31.4]} 23. Nfe5 {[%clk 0:00:46.2]} 23...
Nxe5 {[%clk 0:00:27.7]} 24. Nxe5 {[%clk 0:00:45.4]} 24... f3 {[%clk 0:00:24.9]}
25. Bh1 {[%clk 0:00:34.3]} 25... h5 {[%clk 0:00:23.2]} 26. Qd2 {[%clk
0:00:28.5]} 26... Qd6 {[%clk 0:00:17.3]} 27. Qg5+ {[%clk 0:00:26.6]} 27... Ng6
{[%clk 0:00:17.5]} 28. Nc4 {[%clk 0:00:24]} 28... Qf4 {[%clk 0:00:15.8]} 29.
Qxf4 {[%clk 0:00:15.8]} 29... Nxf4 {[%clk 0:00:16.7]} 30. h4 {[%clk 0:00:13.6]}
30... Nh3+ {[%clk 0:00:11.8]} 31. Kf1 {[%clk 0:00:11.3]} 31... Rae8 {[%clk
0:00:12]} 32. e5 {[%clk 0:00:10]} 32... Rf5 {[%clk 0:00:11.8]} 33. Re3 {[%clk
0:00:02.7]} 33... Rfxe5 {[%clk 0:00:11.5]} 34. Rce1 {[%clk 0:00:01]} 34... Rxe3
{[%clk 0:00:10.3]} 0-1

[Event "*** SCC Grand Prix: Titled Tuesday Blitz"]
[Site "Chess.com"]
[Date "2020.09.08"]
[Round "2"]
[White "GelmanAlexander"]
[Black "AlexTriapishko"]
[Result "1/2-1/2"]
[WhiteElo "2512"]
[BlackElo "2747"]
[TimeControl "180+1"]
[EndTime "10:18:08 PDT"]
[Termination "Game drawn by repetition"]

1. d4 {[%clk 0:03:00.9]} 1... Nf6 {[%clk 0:02:43.2]} 2. Nc3 {[%clk 0:03:00.5]}
2... d5 {[%clk 0:02:42.1]} 3. Bf4 {[%clk 0:03:00.1]} 3... c5 {[%clk 0:02:42.3]}
4. e3 {[%clk 0:02:59.4]} 4... cxd4 {[%clk 0:02:42.7]} 5. exd4 {[%clk 0:02:59.5]}
5... a6 {[%clk 0:02:43.3]} 6. Nf3 {[%clk 0:02:59.6]} 6... Bg4 {[%clk 0:02:43.7]}
7. h3 {[%clk 0:02:59.5]} 7... Bxf3 {[%clk 0:02:44.2]} 8. Qxf3 {[%clk 0:03:00.4]}
8... Nc6 {[%clk 0:02:45]} 9. O-O-O {[%clk 0:03:00.8]} 9... e6 {[%clk 0:02:45.6]}
10. g4 {[%clk 0:03:00.8]} 10... Bd6 {[%clk 0:02:45.8]} 11. Kb1 {[%clk
0:02:37.7]} 11... Bxf4 {[%clk 0:02:43.3]} 12. Qxf4 {[%clk 0:02:37.9]} 12... Rc8
{[%clk 0:02:26.8]} 13. h4 {[%clk 0:02:02.2]} 13... Qc7 {[%clk 0:02:11.2]} 14.
Qg5 {[%clk 0:01:46.9]} 14... h6 {[%clk 0:01:12.7]} 15. Qd2 {[%clk 0:01:25.8]}
15... Nxg4 {[%clk 0:00:46.7]} 16. Rg1 {[%clk 0:01:25.7]} 16... h5 {[%clk
0:00:42.6]} 17. f3 {[%clk 0:01:20.8]} 17... Nh6 {[%clk 0:00:43.1]} 18. Rxg7
{[%clk 0:00:38]} 18... Nf5 {[%clk 0:00:42]} 19. Rg5 {[%clk 0:00:36.2]} 19...
Ncxd4 {[%clk 0:00:23.5]} 20. Qf2 {[%clk 0:00:34.2]} 20... Qf4 {[%clk 0:00:20.8]}
21. Bh3 {[%clk 0:00:16]} 21... Ne3 {[%clk 0:00:12.7]} 22. Re1 {[%clk 0:00:11.7]}
22... Ndxc2 {[%clk 0:00:10.9]} 23. Re2 {[%clk 0:00:12]} 23... Rxc3 {[%clk
0:00:08.3]} 24. bxc3 {[%clk 0:00:11.1]} 24... Na3+ {[%clk 0:00:08.3]} 25. Ka1
{[%clk 0:00:09.8]} 25... Nec4 {[%clk 0:00:05.6]} 26. Qe1 {[%clk 0:00:08.2]}
26... Kf8 {[%clk 0:00:03.2]} 27. Bxe6 {[%clk 0:00:06.5]} 27... fxe6 {[%clk
0:00:02.6]} 28. Qg1 {[%clk 0:00:04.8]} 28... Qf6 {[%clk 0:00:02.3]} 29. Qc5+
{[%clk 0:00:04.9]} 29... Kf7 {[%clk 0:00:02.3]} 30. Qc7+ {[%clk 0:00:04.9]}
30... Kf8 {[%clk 0:00:02.9]} 31. Qc8+ {[%clk 0:00:05]} 31... Ke7 {[%clk
0:00:03.4]} 32. Qc7+ {[%clk 0:00:05.2]} 32... Ke8 {[%clk 0:00:03.8]} 33. Qc8+
{[%clk 0:00:04.4]} 33... Kf7 {[%clk 0:00:03.8]} 34. Qc7+ {[%clk 0:00:03.6]}
34... Kf8 {[%clk 0:00:03.8]} 35. Qc8+ {[%clk 0:00:03.8]} 35... Kf7 {[%clk
0:00:04.3]} 36. Qc7+ {[%clk 0:00:04]} 1/2-1/2

[Event "*** SCC Grand Prix: Titled Tuesday Blitz"]
[Site "Chess.com"]
[Date "2020.09.08"]
[Round "2"]
[White "MashaFromRussia"]
[Black "Pertinhez76"]
[Result "0-1"]
[WhiteElo "2365"]
[BlackElo "2094"]
[TimeControl "180+1"]
[EndTime "10:18:12 PDT"]
[Termination "Pertinhez76 won by resignation"]

1. d4 {[%clk 0:03:00.9]} 1... e6 {[%clk 0:02:59.6]} 2. c4 {[%clk 0:03:00.4]}
2... d5 {[%clk 0:02:58.4]} 3. Nf3 {[%clk 0:03:00.5]} 3... c6 {[%clk 0:02:58]} 4.
g3 {[%clk 0:03:00.8]} 4... f5 {[%clk 0:02:58]} 5. Bg2 {[%clk 0:03:01.3]} 5...
Nf6 {[%clk 0:02:58.5]} 6. O-O {[%clk 0:03:01.8]} 6... Bd6 {[%clk 0:02:58.5]} 7.
b3 {[%clk 0:03:02.1]} 7... Nbd7 {[%clk 0:02:58.6]} 8. Ba3 {[%clk 0:03:02]} 8...
Qe7 {[%clk 0:02:58.6]} 9. Bxd6 {[%clk 0:03:00.9]} 9... Qxd6 {[%clk 0:02:58.7]}
10. Nbd2 {[%clk 0:02:59.3]} 10... Ne4 {[%clk 0:02:57.9]} 11. Nxe4 {[%clk
0:02:56.2]} 11... fxe4 {[%clk 0:02:57.4]} 12. Ng5 {[%clk 0:02:56.5]} 12... O-O
{[%clk 0:02:55.9]} 13. f3 {[%clk 0:02:52.9]} 13... h6 {[%clk 0:02:52.3]} 14. Nh3
{[%clk 0:02:48.5]} 14... exf3 {[%clk 0:02:49.9]} 15. exf3 {[%clk 0:02:49.4]}
15... e5 {[%clk 0:02:50.2]} 16. dxe5 {[%clk 0:02:43.7]} 16... Nxe5 {[%clk
0:02:45.3]} 17. cxd5 {[%clk 0:02:43.2]} 17... cxd5 {[%clk 0:02:42.2]} 18. f4
{[%clk 0:02:43]} 18... Bxh3 {[%clk 0:02:32.4]} 19. Bxh3 {[%clk 0:02:34.4]} 19...
Nc6 {[%clk 0:02:28.8]} 20. Re1 {[%clk 0:02:29.1]} 20... Rfe8 {[%clk 0:02:25.5]}
21. Qd3 {[%clk 0:02:15.3]} 21... Rad8 {[%clk 0:02:17.9]} 22. Rad1 {[%clk
0:02:12]} 22... d4 {[%clk 0:02:06.7]} 23. Bg2 {[%clk 0:01:54.7]} 23... Rxe1+
{[%clk 0:01:59]} 24. Rxe1 {[%clk 0:01:54.4]} 24... Qc5 {[%clk 0:01:58.7]} 25.
Kh1 {[%clk 0:01:41.1]} 25... Kh8 {[%clk 0:01:57.6]} 26. Qg6 {[%clk 0:01:37.3]}
26... Qf8 {[%clk 0:01:48.4]} 27. Be4 {[%clk 0:01:35.7]} 27... Qg8 {[%clk
0:01:41.6]} 28. f5 {[%clk 0:01:30.8]} 28... Ne5 {[%clk 0:01:33.5]} 29. Qh5
{[%clk 0:01:23.4]} 29... Nd7 {[%clk 0:01:32.5]} 30. Bxb7 {[%clk 0:01:16.7]}
30... Nf6 {[%clk 0:01:32.9]} 31. Qf3 {[%clk 0:01:16.5]} 31... d3 {[%clk
0:01:32.7]} 32. Rd1 {[%clk 0:01:15.4]} 32... d2 {[%clk 0:01:31.8]} 33. Qe2
{[%clk 0:01:11.1]} 33... Qf7 {[%clk 0:01:27.5]} 34. Bf3 {[%clk 0:00:56.4]} 34...
Qd7 {[%clk 0:01:22.7]} 35. g4 {[%clk 0:00:56.3]} 35... Nh7 {[%clk 0:01:13.3]}
36. h4 {[%clk 0:00:55.5]} 36... Qd4 {[%clk 0:01:11.6]} 37. Kg2 {[%clk 0:00:51]}
37... Nf6 {[%clk 0:01:10.7]} 38. g5 {[%clk 0:00:45.6]} 38... Ng8 {[%clk
0:01:03]} 39. f6 {[%clk 0:00:36.4]} 39... gxf6 {[%clk 0:00:57.4]} 40. gxf6
{[%clk 0:00:23.5]} 40... Nxf6 {[%clk 0:00:48.9]} 41. h5 {[%clk 0:00:23.3]} 41...
Qf4 {[%clk 0:00:45.7]} 42. Qe7 {[%clk 0:00:20.2]} 42... Rg8+ {[%clk 0:00:42.4]}
43. Kf2 {[%clk 0:00:20.6]} 43... Nd5 {[%clk 0:00:27]} 44. Qe6 {[%clk 0:00:16]}
44... Qh2+ {[%clk 0:00:22.2]} 0-1

[Event "*** SCC Grand Prix: Titled Tuesday Blitz"]
[Site "Chess.com"]
[Date "2020.09.08"]
[Round "2"]
[White "hellokostya"]
[Black "anon102030"]
[Result "0-1"]
[WhiteElo "2491"]
[BlackElo "2727"]
[TimeControl "180+1"]
[EndTime "10:18:15 PDT"]
[Termination "anon102030 won on time"]

1. d4 {[%clk 0:03:00.9]} 1... Nf6 {[%clk 0:02:56.4]} 2. c4 {[%clk 0:03:01.1]}
2... e5 {[%clk 0:02:55.6]} 3. dxe5 {[%clk 0:03:00.9]} 3... Ng4 {[%clk
0:02:55.6]} 4. Nc3 {[%clk 0:03:01.1]} 4... Nxe5 {[%clk 0:02:54.2]} 5. e3 {[%clk
0:03:01.3]} 5... Nbc6 {[%clk 0:02:53.4]} 6. a3 {[%clk 0:03:01.4]} 6... g6 {[%clk
0:02:53.4]} 7. f4 {[%clk 0:02:59.7]} 7... Bg7 {[%clk 0:02:46.9]} 8. fxe5 {[%clk
0:02:59.3]} 8... Nxe5 {[%clk 0:02:46.6]} 9. Nf3 {[%clk 0:02:58.3]} 9... O-O
{[%clk 0:02:42.1]} 10. Be2 {[%clk 0:02:57]} 10... d6 {[%clk 0:02:40.2]} 11. O-O
{[%clk 0:02:51.1]} 11... Re8 {[%clk 0:02:39.9]} 12. e4 {[%clk 0:02:46.5]} 12...
c6 {[%clk 0:02:36.2]} 13. Bf4 {[%clk 0:02:40.5]} 13... Qe7 {[%clk 0:02:27.8]}
14. Nxe5 {[%clk 0:02:38.6]} 14... dxe5 {[%clk 0:02:27.7]} 15. Be3 {[%clk
0:02:36.3]} 15... Be6 {[%clk 0:02:25.5]} 16. Qc2 {[%clk 0:02:21.4]} 16... Rad8
{[%clk 0:02:24.8]} 17. Rad1 {[%clk 0:02:20.9]} 17... b6 {[%clk 0:02:21.7]} 18.
Rxd8 {[%clk 0:02:20.5]} 18... Rxd8 {[%clk 0:02:20.5]} 19. Rd1 {[%clk 0:02:21.4]}
19... Rf8 {[%clk 0:02:07.6]} 20. c5 {[%clk 0:02:11.8]} 20... b5 {[%clk
0:02:03.8]} 21. b4 {[%clk 0:02:09.9]} 21... f5 {[%clk 0:02:02.7]} 22. exf5
{[%clk 0:02:05.4]} 22... gxf5 {[%clk 0:02:01.5]} 23. Rd6 {[%clk 0:02:03.9]}
23... Qe8 {[%clk 0:01:52.1]} 24. Bf2 {[%clk 0:01:57.5]} 24... a6 {[%clk
0:01:45.1]} 25. h3 {[%clk 0:01:53.8]} 25... e4 {[%clk 0:01:36.5]} 26. Nd1 {[%clk
0:01:46.6]} 26... Be5 {[%clk 0:01:30.7]} 27. Rd2 {[%clk 0:01:31.7]} 27... Qg6
{[%clk 0:01:12.3]} 28. Bd4 {[%clk 0:01:07.6]} 28... Bc7 {[%clk 0:01:03.5]} 29.
Qc3 {[%clk 0:00:48.8]} 29... f4 {[%clk 0:00:53.7]} 30. Bf1 {[%clk 0:00:38.3]}
30... e3 {[%clk 0:00:48.7]} 31. Nxe3 {[%clk 0:00:26.3]} 31... fxe3 {[%clk
0:00:49.6]} 32. Qxe3 {[%clk 0:00:17.5]} 32... Bf4 {[%clk 0:00:47.1]} 33. Qc3
{[%clk 0:00:16.1]} 33... Bxd2 {[%clk 0:00:47.1]} 34. Qxd2 {[%clk 0:00:17]} 34...
Bd5 {[%clk 0:00:46.9]} 35. Bb2 {[%clk 0:00:15.3]} 35... Qg3 {[%clk 0:00:26.7]}
36. Qd4 {[%clk 0:00:13.6]} 36... Qg5 {[%clk 0:00:13.5]} 37. Qh8+ {[%clk
0:00:10.6]} 37... Kf7 {[%clk 0:00:13.9]} 38. Qxh7+ {[%clk 0:00:10.9]} 38... Ke8
{[%clk 0:00:14.1]} 39. Qd3 {[%clk 0:00:06.5]} 39... Qf4 {[%clk 0:00:11.7]} 40.
Qe2+ {[%clk 0:00:03.3]} 40... Kd7 {[%clk 0:00:10.8]} 41. Qc2 {[%clk 0:00:03.2]}
41... Qxf1+ {[%clk 0:00:09]} 0-1

[Event "*** SCC Grand Prix: Titled Tuesday Blitz"]
[Site "Chess.com"]
[Date "2020.09.08"]
[Round "2"]
[White "abhidabhi"]
[Black "maximnovik"]
[Result "0-1"]
[WhiteElo "2711"]
[BlackElo "2505"]
[TimeControl "180+1"]
[EndTime "10:18:15 PDT"]
[Termination "maximnovik won on time"]

1. e4 {[%clk 0:03:00.9]} 1... c6 {[%clk 0:02:59.1]} 2. d4 {[%clk 0:03:00]} 2...
d5 {[%clk 0:02:59.6]} 3. Nd2 {[%clk 0:03:00.7]} 3... dxe4 {[%clk 0:02:59.6]} 4.
Nxe4 {[%clk 0:03:01.6]} 4... Bf5 {[%clk 0:03:00]} 5. Ng3 {[%clk 0:03:01.8]} 5...
Bg6 {[%clk 0:03:00.6]} 6. h4 {[%clk 0:03:02.6]} 6... h6 {[%clk 0:03:01]} 7. Nf3
{[%clk 0:03:03]} 7... e6 {[%clk 0:03:00.1]} 8. Ne5 {[%clk 0:03:02.4]} 8... Bh7
{[%clk 0:03:00.5]} 9. Bd3 {[%clk 0:03:02.6]} 9... Bxd3 {[%clk 0:02:59.8]} 10.
Qxd3 {[%clk 0:03:02.5]} 10... Nd7 {[%clk 0:03:00.3]} 11. f4 {[%clk 0:03:02.3]}
11... Be7 {[%clk 0:03:00.7]} 12. Bd2 {[%clk 0:02:53.8]} 12... Nxe5 {[%clk
0:02:56.1]} 13. fxe5 {[%clk 0:02:53.4]} 13... Bxh4 {[%clk 0:02:56.4]} 14. O-O-O
{[%clk 0:02:51.6]} 14... Bxg3 {[%clk 0:02:56.4]} 15. Qxg3 {[%clk 0:02:51]} 15...
Ne7 {[%clk 0:02:56.8]} 16. Bb4 {[%clk 0:02:41.8]} 16... Nf5 {[%clk 0:02:36]} 17.
Qf2 {[%clk 0:02:40.3]} 17... a5 {[%clk 0:02:00.9]} 18. Ba3 {[%clk 0:02:37.3]}
18... Qg5+ {[%clk 0:01:42.2]} 19. Kb1 {[%clk 0:02:36.3]} 19... O-O-O {[%clk
0:01:42.2]} 20. Rd3 {[%clk 0:02:09.1]} 20... Qg4 {[%clk 0:01:07.3]} 21. Bc5
{[%clk 0:02:06.1]} 21... Kc7 {[%clk 0:00:58.4]} 22. Rb3 {[%clk 0:01:40]} 22...
Rd5 {[%clk 0:00:47.8]} 23. Qe1 {[%clk 0:01:34.6]} 23... Ra8 {[%clk 0:00:45.3]}
24. a4 {[%clk 0:01:16]} 24... Ra6 {[%clk 0:00:29.5]} 25. Rhh3 {[%clk 0:01:06.5]}
25... b6 {[%clk 0:00:20]} 26. Qf1 {[%clk 0:01:06.8]} 26... Kb7 {[%clk
0:00:18.9]} 27. Rhc3 {[%clk 0:00:24.2]} 27... Ka7 {[%clk 0:00:18.5]} 28. Ba3
{[%clk 0:00:16.1]} 28... Rxd4 {[%clk 0:00:18.5]} 29. Ka2 {[%clk 0:00:12.7]}
29... Qd1 {[%clk 0:00:16.3]} 30. Qf2 {[%clk 0:00:09.8]} 30... Qd2 {[%clk
0:00:14.3]} 31. Qf3 {[%clk 0:00:06.8]} 31... Qd1 {[%clk 0:00:13.7]} 32. Qxc6
{[%clk 0:00:06.6]} 32... Rd7 {[%clk 0:00:12.9]} 33. Qc8 {[%clk 0:00:03.5]} 33...
Qd5 {[%clk 0:00:11.3]} 34. Bd6 {[%clk 0:00:02.9]} 34... Qb7 {[%clk 0:00:10.4]}
35. Qf8 {[%clk 0:00:01.3]} 35... Nxd6 {[%clk 0:00:09.7]} 36. exd6 {[%clk
0:00:01.5]} 36... e5 {[%clk 0:00:09.5]} 0-1

[Event "*** SCC Grand Prix: Titled Tuesday Blitz"]
[Site "Chess.com"]
[Date "2020.09.08"]
[Round "2"]
[White "Justinz"]
[Black "Violord"]
[Result "0-1"]
[WhiteElo "2411"]
[BlackElo "2678"]
[TimeControl "180+1"]
[EndTime "10:18:18 PDT"]
[Termination "Violord won by resignation"]

1. e4 {[%clk 0:03:00.9]} 1... g6 {[%clk 0:02:58.9]} 2. d4 {[%clk 0:02:55.8]}
2... Bg7 {[%clk 0:02:58.3]} 3. Nc3 {[%clk 0:02:55.8]} 3... c6 {[%clk 0:02:57.7]}
4. Nf3 {[%clk 0:02:53.6]} 4... d5 {[%clk 0:02:56.3]} 5. h3 {[%clk 0:02:53.7]}
5... dxe4 {[%clk 0:02:55.4]} 6. Nxe4 {[%clk 0:02:53.4]} 6... Bf5 {[%clk
0:02:56]} 7. Ng3 {[%clk 0:02:52.7]} 7... Be6 {[%clk 0:02:56]} 8. Be2 {[%clk
0:02:47.9]} 8... Nf6 {[%clk 0:02:55.1]} 9. O-O {[%clk 0:02:47.7]} 9... O-O
{[%clk 0:02:54.6]} 10. c4 {[%clk 0:02:45.3]} 10... b5 {[%clk 0:02:51.9]} 11. b3
{[%clk 0:02:43.1]} 11... bxc4 {[%clk 0:02:43.1]} 12. bxc4 {[%clk 0:02:42.6]}
12... Qc8 {[%clk 0:02:30.4]} 13. Be3 {[%clk 0:02:19.9]} 13... Nbd7 {[%clk
0:02:15.7]} 14. Qd2 {[%clk 0:02:13.5]} 14... Nb6 {[%clk 0:02:14.8]} 15. Rac1
{[%clk 0:02:10.2]} 15... Rd8 {[%clk 0:02:09.3]} 16. Rfd1 {[%clk 0:02:09.4]}
16... Qb7 {[%clk 0:01:58.1]} 17. Rb1 {[%clk 0:01:57.3]} 17... Qc7 {[%clk
0:01:54.8]} 18. Qc1 {[%clk 0:01:55.2]} 18... Rac8 {[%clk 0:01:45.3]} 19. Bf4
{[%clk 0:01:48.6]} 19... Qd7 {[%clk 0:01:45.1]} 20. Ng5 {[%clk 0:01:43.7]} 20...
Bf5 {[%clk 0:01:30.8]} 21. Nxf5 {[%clk 0:01:36.9]} 21... Qxf5 {[%clk 0:01:30]}
22. Nf3 {[%clk 0:01:26.8]} 22... Qa5 {[%clk 0:01:10.9]} 23. Qc2 {[%clk 0:01:19]}
23... Qa4 {[%clk 0:01:07.6]} 24. Rb3 {[%clk 0:01:16.9]} 24... c5 {[%clk
0:00:54]} 25. d5 {[%clk 0:01:15.7]} 25... Nfxd5 {[%clk 0:00:46]} 26. cxd5 {[%clk
0:01:13.9]} 26... Qxf4 {[%clk 0:00:45.2]} 27. Rbd3 {[%clk 0:01:10.9]} 27... c4
{[%clk 0:00:44.4]} 28. R3d2 {[%clk 0:01:10.9]} 28... c3 {[%clk 0:00:43.5]} 29.
Rd3 {[%clk 0:01:11]} 29... Qa4 {[%clk 0:00:41.6]} 30. Ne1 {[%clk 0:01:08.2]}
30... Qxc2 {[%clk 0:00:39.2]} 31. Nxc2 {[%clk 0:01:09.1]} 31... Na4 {[%clk
0:00:39.3]} 32. Re1 {[%clk 0:01:07.2]} 32... Nb2 {[%clk 0:00:38.5]} 33. Re3
{[%clk 0:01:07.2]} 33... Kf8 {[%clk 0:00:36.9]} 34. Bf3 {[%clk 0:01:06.5]} 34...
Rc7 {[%clk 0:00:34.7]} 35. R3e2 {[%clk 0:00:57.2]} 35... Nd3 {[%clk 0:00:33.9]}
36. Rd1 {[%clk 0:00:55.5]} 36... Ne5 {[%clk 0:00:33.5]} 37. Be4 {[%clk
0:00:52.9]} 37... f5 {[%clk 0:00:32.7]} 38. Nd4 {[%clk 0:00:43.5]} 38... fxe4
{[%clk 0:00:29.4]} 39. Ne6+ {[%clk 0:00:43.1]} 39... Kg8 {[%clk 0:00:29.8]} 40.
Nxc7 {[%clk 0:00:42.9]} 40... Rc8 {[%clk 0:00:19.4]} 41. Ne6 {[%clk 0:00:40.3]}
41... Nd3 {[%clk 0:00:19.1]} 42. Nxg7 {[%clk 0:00:36.2]} 42... c2 {[%clk
0:00:19]} 43. Rxc2 {[%clk 0:00:35.4]} 43... Rxc2 {[%clk 0:00:18.8]} 44. Ne6
{[%clk 0:00:35.4]} 44... Rxa2 {[%clk 0:00:18.7]} 45. f3 {[%clk 0:00:33.4]} 45...
e3 {[%clk 0:00:16.6]} 46. Rxd3 {[%clk 0:00:32.2]} 46... Ra1+ {[%clk 0:00:16.4]}
47. Kh2 {[%clk 0:00:25.1]} 47... e2 {[%clk 0:00:16.8]} 48. Rc3 {[%clk
0:00:19.2]} 48... Rh1+ {[%clk 0:00:15.9]} 49. Kg3 {[%clk 0:00:18.6]} 49... e1=Q+
{[%clk 0:00:15.1]} 0-1

[Event "*** SCC Grand Prix: Titled Tuesday Blitz"]
[Site "Chess.com"]
[Date "2020.09.08"]
[Round "2"]
[White "Kazan28"]
[Black "wannabe2700"]
[Result "0-1"]
[WhiteElo "2232"]
[BlackElo "2628"]
[TimeControl "180+1"]
[EndTime "10:18:21 PDT"]
[Termination "wannabe2700 won by checkmate"]

1. Nf3 {[%clk 0:03:00.9]} 1... f5 {[%clk 0:02:59.1]} 2. g3 {[%clk 0:02:55.7]}
2... Nf6 {[%clk 0:02:59.6]} 3. Bg2 {[%clk 0:02:55]} 3... g6 {[%clk 0:03:00.5]}
4. O-O {[%clk 0:02:54.4]} 4... Bg7 {[%clk 0:03:01.4]} 5. d4 {[%clk 0:02:54.6]}
5... O-O {[%clk 0:03:02.3]} 6. b3 {[%clk 0:02:53.6]} 6... d6 {[%clk 0:03:03.2]}
7. Bb2 {[%clk 0:02:49.1]} 7... c6 {[%clk 0:03:03.6]} 8. Nbd2 {[%clk 0:02:48.9]}
8... Na6 {[%clk 0:03:02.4]} 9. Re1 {[%clk 0:02:46.6]} 9... Ne4 {[%clk
0:02:27.1]} 10. c4 {[%clk 0:02:41.1]} 10... Qe8 {[%clk 0:02:11.4]} 11. Qc2
{[%clk 0:02:22.7]} 11... Nb4 {[%clk 0:02:07.9]} 12. Qb1 {[%clk 0:02:18]} 12...
Nxd2 {[%clk 0:02:02.6]} 13. Nxd2 {[%clk 0:02:18.9]} 13... e5 {[%clk 0:02:00.8]}
14. a3 {[%clk 0:02:16.1]} 14... Na6 {[%clk 0:02:00.3]} 15. dxe5 {[%clk
0:02:14.8]} 15... dxe5 {[%clk 0:01:59.9]} 16. e4 {[%clk 0:02:10.3]} 16... f4
{[%clk 0:01:59.9]} 17. b4 {[%clk 0:02:08.9]} 17... Qf7 {[%clk 0:01:49.7]} 18. f3
{[%clk 0:02:01.6]} 18... Be6 {[%clk 0:01:43.4]} 19. Bc3 {[%clk 0:01:57.7]} 19...
Bxc4 {[%clk 0:01:30.2]} 20. Nxc4 {[%clk 0:01:58.6]} 20... Qxc4 {[%clk
0:01:30.6]} 21. Qa2 {[%clk 0:01:57.4]} 21... Qxa2 {[%clk 0:01:30.2]} 22. Rxa2
{[%clk 0:01:58.3]} 22... Rad8 {[%clk 0:01:26.2]} 23. Rc2 {[%clk 0:01:54]} 23...
Nc7 {[%clk 0:01:21.5]} 24. a4 {[%clk 0:01:40.9]} 24... Ne6 {[%clk 0:01:18.5]}
25. g4 {[%clk 0:01:30.9]} 25... Nd4 {[%clk 0:01:13.9]} 26. Rb2 {[%clk
0:01:30.5]} 26... Rd6 {[%clk 0:01:12.2]} 27. Rc1 {[%clk 0:01:28.3]} 27... Rfd8
{[%clk 0:01:11.6]} 28. Kf2 {[%clk 0:01:27.6]} 28... Bf6 {[%clk 0:01:11]} 29. Bf1
{[%clk 0:01:27.4]} 29... h5 {[%clk 0:01:05.7]} 30. h3 {[%clk 0:01:26.8]} 30...
Kg7 {[%clk 0:01:04.6]} 31. Bc4 {[%clk 0:01:25]} 31... Bh4+ {[%clk 0:01:04]} 32.
Kg2 {[%clk 0:01:24.4]} 32... Bg3 {[%clk 0:01:01.1]} 33. Rcc2 {[%clk 0:00:54.3]}
33... hxg4 {[%clk 0:00:58]} 34. hxg4 {[%clk 0:00:50.8]} 34... Rh8 {[%clk
0:00:57.6]} 35. Bxd4 {[%clk 0:00:45.5]} 35... Rxd4 {[%clk 0:00:58.2]} 36. Bf1
{[%clk 0:00:37.7]} 36... Rh2+ {[%clk 0:00:46.6]} 37. Kg1 {[%clk 0:00:36.9]}
37... Rxc2 {[%clk 0:00:47.5]} 38. Rxc2 {[%clk 0:00:37.7]} 38... Rxb4 {[%clk
0:00:47.8]} 39. a5 {[%clk 0:00:38.4]} 39... a6 {[%clk 0:00:45.7]} 40. Rd2 {[%clk
0:00:37.8]} 40... Bh4 {[%clk 0:00:30.6]} 41. Rd7+ {[%clk 0:00:36.4]} 41... Kh6
{[%clk 0:00:31.2]} 42. Rf7 {[%clk 0:00:25.3]} 42... Rb2 {[%clk 0:00:30.4]} 43.
Bc4 {[%clk 0:00:24.4]} 43... Be1 {[%clk 0:00:26.6]} 44. Re7 {[%clk 0:00:10.2]}
44... Bc3 {[%clk 0:00:26.1]} 45. Bf7 {[%clk 0:00:07.3]} 45... Kg5 {[%clk
0:00:26.1]} 46. Be8 {[%clk 0:00:06.8]} 46... Kh4 {[%clk 0:00:25.8]} 47. Bxg6
{[%clk 0:00:05.6]} 47... Kg3 {[%clk 0:00:26.2]} 48. Kf1 {[%clk 0:00:05.1]} 48...
Kxf3 {[%clk 0:00:26.7]} 49. Kg1 {[%clk 0:00:05.6]} 49... Bd4+ {[%clk 0:00:26.3]}
50. Kh1 {[%clk 0:00:06]} 50... Kg3 {[%clk 0:00:26.7]} 51. Bf5 {[%clk 0:00:06.6]}
51... Rb1# {[%clk 0:00:26.8]} 0-1